{"text_format":"1","workbook":"xlsx","n_sheets":1,"sheets":["Sheet1"],"not_rendered":{"charts":0,"images":0,"macros":1,"external_links":0,"defined_names":1,"comments":0,"pivot_tables":0},"unopened":[],"bounds":{"document_bytes":16777216,"sheet_cells":100000,"rows_first":2000,"rows_last":500,"rows_between":2000,"halvings":0,"cell_chars":16384,"cell_head_chars":4096},"cells_cut":0,"cells_raw":0,"read":"whole","date_system":"1900"}

{"sheet":"Sheet1","index":0,"n_rows":31,"n_cols":10,"rows_kept":31,"cut":false,"hidden":false,"merged":[]}
["WhatsApp-Nachricht an Elternteil, wenn Konfirmand fehlt"]
[]
["Vorbereitung (einmalig):"]
["1. Melde Dich auf WhatsApp Web an: https://web.whatsapp.com/"]
["2. Beim Öffnen dieses Excels \"Makros aktivieren\" wählen"]
["3.  Namen von Konfirmanden + Elternteil + Handynummer Eltenteil im gegebenen Format eingeben"]
["4. Deinen Namen im gelben Feld angeben. (Und wenn Du willst, die Nachricht im zweiten gelben Feld ändern)"]
[]
["Benutzung"]
["1. Einfach auf die Zeile bei \"Hier Nachricht schicken\" klicken"]
["2. Es öffnet sich ein Internetfenster mit WhatsApp, dort noch Absenden drücken"]
[]
["Text Nachricht: ","ist nicht da.\nKonf läuft.\nLiebe Grüsse"]
["Name Absender","Paul Pfarrer"]
[]
["Konfirmand\nVorname","Konfirmand_Nachname","Hier Nachricht schicken","Elternteil_Anrede","Elternteil_Vorname","Handy_Elternteil_WA","WA_Text","URL_Endoded","WA_encoded","Spalte1"]
["Dirk","Draufgänger",{"$f":"HYPERLINK(\"https://api.whatsapp.com/send?phone=\" & Tabelle1[[#This Row],[Handy_Elternteil_WA]] & \"&text=\" & URLEncode(Tabelle1[[#This Row],[WA_Text]]), Tabelle1[[#This Row],[Konfirmand\nVorname]] & \" fehlt,  📲 Nachricht an \" & Tabelle1[[#This Row],[Elternteil_Vorname]])","v":"Dirk fehlt,  📲 Nachricht an Diana"},"Liebe","Diana",41790000000,{"$f":"Tabelle1[[#This Row],[Elternteil_Anrede]] & \" \" & Tabelle1[[#This Row],[Elternteil_Vorname]] & \"\nWo ist \" &Tabelle1[[#This Row],[Konfirmand\nVorname]] & \"? \nKonf läuft. \nLiebe Grüsse\n\" & Name_Absender","v":"Liebe Diana\nWo ist Dirk? \nKonf läuft. \nLiebe Grüsse\nPaul Pfarrer"},{"$f":"URLEncode(Tabelle1[[#This Row],[WA_Text]])","v":"Liebe%20Diana%0AWo%20ist%20Dirk%3F%20%0AKonf%20l%C3%A4uft.%20%0ALiebe%20Gr%C3%BCsse%0APaul%20Pfarrer"},{"$f":"\"https://api.whatsapp.com/send?phone=\" & Tabelle1[[#This Row],[Handy_Elternteil_WA]] & \"&text=\" & URLEncode(Tabelle1[[#This Row],[WA_Text]])","v":"https://api.whatsapp.com/send?phone=41790000000&text=Liebe%20Diana%0AWo%20ist%20Dirk%3F%20%0AKonf%20l%C3%A4uft.%20%0ALiebe%20Gr%C3%BCsse%0APaul%20Pfarrer"},"."]
["Esther","Evangelium",{"$f":"HYPERLINK(\"https://api.whatsapp.com/send?phone=\" & Tabelle1[[#This Row],[Handy_Elternteil_WA]] & \"&text=\" & URLEncode(Tabelle1[[#This Row],[WA_Text]]), Tabelle1[[#This Row],[Konfirmand\nVorname]] & \" fehlt,  📲 Nachricht an \" & Tabelle1[[#This Row],[Elternteil_Vorname]])","v":"Esther fehlt,  📲 Nachricht an Erik"},"Lieber","Erik",41790000000,{"$f":"Tabelle1[[#This Row],[Elternteil_Anrede]] & \" \" & Tabelle1[[#This Row],[Elternteil_Vorname]] & \"\nWo ist \" &Tabelle1[[#This Row],[Konfirmand\nVorname]] & \"? \nKonf läuft. \nLiebe Grüsse\n\" & Name_Absender","v":"Lieber Erik\nWo ist Esther? \nKonf läuft. \nLiebe Grüsse\nPaul Pfarrer"},{"$f":"URLEncode(Tabelle1[[#This Row],[WA_Text]])","v":"Lieber%20Erik%0AWo%20ist%20Esther%3F%20%0AKonf%20l%C3%A4uft.%20%0ALiebe%20Gr%C3%BCsse%0APaul%20Pfarrer"},{"$f":"\"https://api.whatsapp.com/send?phone=\" & Tabelle1[[#This Row],[Handy_Elternteil_WA]] & \"&text=\" & URLEncode(Tabelle1[[#This Row],[WA_Text]])","v":"https://api.whatsapp.com/send?phone=41790000000&text=Lieber%20Erik%0AWo%20ist%20Esther%3F%20%0AKonf%20l%C3%A4uft.%20%0ALiebe%20Gr%C3%BCsse%0APaul%20Pfarrer"},"."]
["Heinrich","Himmelsleiter",{"$f":"HYPERLINK(\"https://api.whatsapp.com/send?phone=\" & Tabelle1[[#This Row],[Handy_Elternteil_WA]] & \"&text=\" & URLEncode(Tabelle1[[#This Row],[WA_Text]]), Tabelle1[[#This Row],[Konfirmand\nVorname]] & \" fehlt,  📲 Nachricht an \" & Tabelle1[[#This Row],[Elternteil_Vorname]])","v":"Heinrich fehlt,  📲 Nachricht an Hans"},"Lieber","Hans",41790000000,{"$f":"Tabelle1[[#This Row],[Elternteil_Anrede]] & \" \" & Tabelle1[[#This Row],[Elternteil_Vorname]] & \"\nWo ist \" &Tabelle1[[#This Row],[Konfirmand\nVorname]] & \"? \nKonf läuft. \nLiebe Grüsse\n\" & Name_Absender","v":"Lieber Hans\nWo ist Heinrich? \nKonf läuft. \nLiebe Grüsse\nPaul Pfarrer"},{"$f":"URLEncode(Tabelle1[[#This Row],[WA_Text]])","v":"Lieber%20Hans%0AWo%20ist%20Heinrich%3F%20%0AKonf%20l%C3%A4uft.%20%0ALiebe%20Gr%C3%BCsse%0APaul%20Pfarrer"},{"$f":"\"https://api.whatsapp.com/send?phone=\" & Tabelle1[[#This Row],[Handy_Elternteil_WA]] & \"&text=\" & URLEncode(Tabelle1[[#This Row],[WA_Text]])","v":"https://api.whatsapp.com/send?phone=41790000000&text=Lieber%20Hans%0AWo%20ist%20Heinrich%3F%20%0AKonf%20l%C3%A4uft.%20%0ALiebe%20Gr%C3%BCsse%0APaul%20Pfarrer"},"."]
["John","Jubelgesang",{"$f":"HYPERLINK(\"https://api.whatsapp.com/send?phone=\" & Tabelle1[[#This Row],[Handy_Elternteil_WA]] & \"&text=\" & URLEncode(Tabelle1[[#This Row],[WA_Text]]), Tabelle1[[#This Row],[Konfirmand\nVorname]] & \" fehlt,  📲 Nachricht an \" & Tabelle1[[#This Row],[Elternteil_Vorname]])","v":"John fehlt,  📲 Nachricht an Jack"},"Lieber","Jack",41790000000,{"$f":"Tabelle1[[#This Row],[Elternteil_Anrede]] & \" \" & Tabelle1[[#This Row],[Elternteil_Vorname]] & \"\nWo ist \" &Tabelle1[[#This Row],[Konfirmand\nVorname]] & \"? \nKonf läuft. \nLiebe Grüsse\n\" & Name_Absender","v":"Lieber Jack\nWo ist John? \nKonf läuft. \nLiebe Grüsse\nPaul Pfarrer"},{"$f":"URLEncode(Tabelle1[[#This Row],[WA_Text]])","v":"Lieber%20Jack%0AWo%20ist%20John%3F%20%0AKonf%20l%C3%A4uft.%20%0ALiebe%20Gr%C3%BCsse%0APaul%20Pfarrer"},{"$f":"\"https://api.whatsapp.com/send?phone=\" & Tabelle1[[#This Row],[Handy_Elternteil_WA]] & \"&text=\" & URLEncode(Tabelle1[[#This Row],[WA_Text]])","v":"https://api.whatsapp.com/send?phone=41790000000&text=Lieber%20Jack%0AWo%20ist%20John%3F%20%0AKonf%20l%C3%A4uft.%20%0ALiebe%20Gr%C3%BCsse%0APaul%20Pfarrer"},"."]
["Lydia","Liturgie",{"$f":"HYPERLINK(\"https://api.whatsapp.com/send?phone=\" & Tabelle1[[#This Row],[Handy_Elternteil_WA]] & \"&text=\" & URLEncode(Tabelle1[[#This Row],[WA_Text]]), Tabelle1[[#This Row],[Konfirmand\nVorname]] & \" fehlt,  📲 Nachricht an \" & Tabelle1[[#This Row],[Elternteil_Vorname]])","v":"Lydia fehlt,  📲 Nachricht an Julia"},"Liebe","Julia",41790000000,{"$f":"Tabelle1[[#This Row],[Elternteil_Anrede]] & \" \" & Tabelle1[[#This Row],[Elternteil_Vorname]] & \"\nWo ist \" &Tabelle1[[#This Row],[Konfirmand\nVorname]] & \"? \nKonf läuft. \nLiebe Grüsse\n\" & Name_Absender","v":"Liebe Julia\nWo ist Lydia? \nKonf läuft. \nLiebe Grüsse\nPaul Pfarrer"},{"$f":"URLEncode(Tabelle1[[#This Row],[WA_Text]])","v":"Liebe%20Julia%0AWo%20ist%20Lydia%3F%20%0AKonf%20l%C3%A4uft.%20%0ALiebe%20Gr%C3%BCsse%0APaul%20Pfarrer"},{"$f":"\"https://api.whatsapp.com/send?phone=\" & Tabelle1[[#This Row],[Handy_Elternteil_WA]] & \"&text=\" & URLEncode(Tabelle1[[#This Row],[WA_Text]])","v":"https://api.whatsapp.com/send?phone=41790000000&text=Liebe%20Julia%0AWo%20ist%20Lydia%3F%20%0AKonf%20l%C3%A4uft.%20%0ALiebe%20Gr%C3%BCsse%0APaul%20Pfarrer"},"."]
["Maria","Muster",{"$f":"HYPERLINK(\"https://api.whatsapp.com/send?phone=\" & Tabelle1[[#This Row],[Handy_Elternteil_WA]] & \"&text=\" & URLEncode(Tabelle1[[#This Row],[WA_Text]]), Tabelle1[[#This Row],[Konfirmand\nVorname]] & \" fehlt,  📲 Nachricht an \" & Tabelle1[[#This Row],[Elternteil_Vorname]])","v":"Maria fehlt,  📲 Nachricht an Lukas"},"Lieber","Lukas",41790000000,{"$f":"Tabelle1[[#This Row],[Elternteil_Anrede]] & \" \" & Tabelle1[[#This Row],[Elternteil_Vorname]] & \"\nWo ist \" &Tabelle1[[#This Row],[Konfirmand\nVorname]] & \"? \nKonf läuft. \nLiebe Grüsse\n\" & Name_Absender","v":"Lieber Lukas\nWo ist Maria? \nKonf läuft. \nLiebe Grüsse\nPaul Pfarrer"},{"$f":"URLEncode(Tabelle1[[#This Row],[WA_Text]])","v":"Lieber%20Lukas%0AWo%20ist%20Maria%3F%20%0AKonf%20l%C3%A4uft.%20%0ALiebe%20Gr%C3%BCsse%0APaul%20Pfarrer"},{"$f":"\"https://api.whatsapp.com/send?phone=\" & Tabelle1[[#This Row],[Handy_Elternteil_WA]] & \"&text=\" & URLEncode(Tabelle1[[#This Row],[WA_Text]])","v":"https://api.whatsapp.com/send?phone=41790000000&text=Lieber%20Lukas%0AWo%20ist%20Maria%3F%20%0AKonf%20l%C3%A4uft.%20%0ALiebe%20Gr%C3%BCsse%0APaul%20Pfarrer"},"."]
["Martin","Messwein",{"$f":"HYPERLINK(\"https://api.whatsapp.com/send?phone=\" & Tabelle1[[#This Row],[Handy_Elternteil_WA]] & \"&text=\" & URLEncode(Tabelle1[[#This Row],[WA_Text]]), Tabelle1[[#This Row],[Konfirmand\nVorname]] & \" fehlt,  📲 Nachricht an \" & Tabelle1[[#This Row],[Elternteil_Vorname]])","v":"Martin fehlt,  📲 Nachricht an Michael"},"Lieber","Michael",41790000000,{"$f":"Tabelle1[[#This Row],[Elternteil_Anrede]] & \" \" & Tabelle1[[#This Row],[Elternteil_Vorname]] & \"\nWo ist \" &Tabelle1[[#This Row],[Konfirmand\nVorname]] & \"? \nKonf läuft. \nLiebe Grüsse\n\" & Name_Absender","v":"Lieber Michael\nWo ist Martin? \nKonf läuft. \nLiebe Grüsse\nPaul Pfarrer"},{"$f":"URLEncode(Tabelle1[[#This Row],[WA_Text]])","v":"Lieber%20Michael%0AWo%20ist%20Martin%3F%20%0AKonf%20l%C3%A4uft.%20%0ALiebe%20Gr%C3%BCsse%0APaul%20Pfarrer"},{"$f":"\"https://api.whatsapp.com/send?phone=\" & Tabelle1[[#This Row],[Handy_Elternteil_WA]] & \"&text=\" & URLEncode(Tabelle1[[#This Row],[WA_Text]])","v":"https://api.whatsapp.com/send?phone=41790000000&text=Lieber%20Michael%0AWo%20ist%20Martin%3F%20%0AKonf%20l%C3%A4uft.%20%0ALiebe%20Gr%C3%BCsse%0APaul%20Pfarrer"},"."]
["Peter","Pfarrer",{"$f":"HYPERLINK(\"https://api.whatsapp.com/send?phone=\" & Tabelle1[[#This Row],[Handy_Elternteil_WA]] & \"&text=\" & URLEncode(Tabelle1[[#This Row],[WA_Text]]), Tabelle1[[#This Row],[Konfirmand\nVorname]] & \" fehlt,  📲 Nachricht an \" & Tabelle1[[#This Row],[Elternteil_Vorname]])","v":"Peter fehlt,  📲 Nachricht an Patricia"},"Liebe","Patricia",41790000000,{"$f":"Tabelle1[[#This Row],[Elternteil_Anrede]] & \" \" & Tabelle1[[#This Row],[Elternteil_Vorname]] & \"\nWo ist \" &Tabelle1[[#This Row],[Konfirmand\nVorname]] & \"? \nKonf läuft. \nLiebe Grüsse\n\" & Name_Absender","v":"Liebe Patricia\nWo ist Peter? \nKonf läuft. \nLiebe Grüsse\nPaul Pfarrer"},{"$f":"URLEncode(Tabelle1[[#This Row],[WA_Text]])","v":"Liebe%20Patricia%0AWo%20ist%20Peter%3F%20%0AKonf%20l%C3%A4uft.%20%0ALiebe%20Gr%C3%BCsse%0APaul%20Pfarrer"},{"$f":"\"https://api.whatsapp.com/send?phone=\" & Tabelle1[[#This Row],[Handy_Elternteil_WA]] & \"&text=\" & URLEncode(Tabelle1[[#This Row],[WA_Text]])","v":"https://api.whatsapp.com/send?phone=41790000000&text=Liebe%20Patricia%0AWo%20ist%20Peter%3F%20%0AKonf%20l%C3%A4uft.%20%0ALiebe%20Gr%C3%BCsse%0APaul%20Pfarrer"},"."]
["Paul","Psalm",{"$f":"HYPERLINK(\"https://api.whatsapp.com/send?phone=\" & Tabelle1[[#This Row],[Handy_Elternteil_WA]] & \"&text=\" & URLEncode(Tabelle1[[#This Row],[WA_Text]]), Tabelle1[[#This Row],[Konfirmand\nVorname]] & \" fehlt,  📲 Nachricht an \" & Tabelle1[[#This Row],[Elternteil_Vorname]])","v":"Paul fehlt,  📲 Nachricht an Pauline"},"Liebe","Pauline",41790000000,{"$f":"Tabelle1[[#This Row],[Elternteil_Anrede]] & \" \" & Tabelle1[[#This Row],[Elternteil_Vorname]] & \"\nWo ist \" &Tabelle1[[#This Row],[Konfirmand\nVorname]] & \"? \nKonf läuft. \nLiebe Grüsse\n\" & Name_Absender","v":"Liebe Pauline\nWo ist Paul? \nKonf läuft. \nLiebe Grüsse\nPaul Pfarrer"},{"$f":"URLEncode(Tabelle1[[#This Row],[WA_Text]])","v":"Liebe%20Pauline%0AWo%20ist%20Paul%3F%20%0AKonf%20l%C3%A4uft.%20%0ALiebe%20Gr%C3%BCsse%0APaul%20Pfarrer"},{"$f":"\"https://api.whatsapp.com/send?phone=\" & Tabelle1[[#This Row],[Handy_Elternteil_WA]] & \"&text=\" & URLEncode(Tabelle1[[#This Row],[WA_Text]])","v":"https://api.whatsapp.com/send?phone=41790000000&text=Liebe%20Pauline%0AWo%20ist%20Paul%3F%20%0AKonf%20l%C3%A4uft.%20%0ALiebe%20Gr%C3%BCsse%0APaul%20Pfarrer"},"."]
["Philipp","Predigtpause",{"$f":"HYPERLINK(\"https://api.whatsapp.com/send?phone=\" & Tabelle1[[#This Row],[Handy_Elternteil_WA]] & \"&text=\" & URLEncode(Tabelle1[[#This Row],[WA_Text]]), Tabelle1[[#This Row],[Konfirmand\nVorname]] & \" fehlt,  📲 Nachricht an \" & Tabelle1[[#This Row],[Elternteil_Vorname]])","v":"Philipp fehlt,  📲 Nachricht an Petra"},"Liebe","Petra",41790000000,{"$f":"Tabelle1[[#This Row],[Elternteil_Anrede]] & \" \" & Tabelle1[[#This Row],[Elternteil_Vorname]] & \"\nWo ist \" &Tabelle1[[#This Row],[Konfirmand\nVorname]] & \"? \nKonf läuft. \nLiebe Grüsse\n\" & Name_Absender","v":"Liebe Petra\nWo ist Philipp? \nKonf läuft. \nLiebe Grüsse\nPaul Pfarrer"},{"$f":"URLEncode(Tabelle1[[#This Row],[WA_Text]])","v":"Liebe%20Petra%0AWo%20ist%20Philipp%3F%20%0AKonf%20l%C3%A4uft.%20%0ALiebe%20Gr%C3%BCsse%0APaul%20Pfarrer"},{"$f":"\"https://api.whatsapp.com/send?phone=\" & Tabelle1[[#This Row],[Handy_Elternteil_WA]] & \"&text=\" & URLEncode(Tabelle1[[#This Row],[WA_Text]])","v":"https://api.whatsapp.com/send?phone=41790000000&text=Liebe%20Petra%0AWo%20ist%20Philipp%3F%20%0AKonf%20l%C3%A4uft.%20%0ALiebe%20Gr%C3%BCsse%0APaul%20Pfarrer"},"."]
["Samuel","Sakrament",{"$f":"HYPERLINK(\"https://api.whatsapp.com/send?phone=\" & Tabelle1[[#This Row],[Handy_Elternteil_WA]] & \"&text=\" & URLEncode(Tabelle1[[#This Row],[WA_Text]]), Tabelle1[[#This Row],[Konfirmand\nVorname]] & \" fehlt,  📲 Nachricht an \" & Tabelle1[[#This Row],[Elternteil_Vorname]])","v":"Samuel fehlt,  📲 Nachricht an Sophia"},"Liebe","Sophia",41790000000,{"$f":"Tabelle1[[#This Row],[Elternteil_Anrede]] & \" \" & Tabelle1[[#This Row],[Elternteil_Vorname]] & \"\nWo ist \" &Tabelle1[[#This Row],[Konfirmand\nVorname]] & \"? \nKonf läuft. \nLiebe Grüsse\n\" & Name_Absender","v":"Liebe Sophia\nWo ist Samuel? \nKonf läuft. \nLiebe Grüsse\nPaul Pfarrer"},{"$f":"URLEncode(Tabelle1[[#This Row],[WA_Text]])","v":"Liebe%20Sophia%0AWo%20ist%20Samuel%3F%20%0AKonf%20l%C3%A4uft.%20%0ALiebe%20Gr%C3%BCsse%0APaul%20Pfarrer"},{"$f":"\"https://api.whatsapp.com/send?phone=\" & Tabelle1[[#This Row],[Handy_Elternteil_WA]] & \"&text=\" & URLEncode(Tabelle1[[#This Row],[WA_Text]])","v":"https://api.whatsapp.com/send?phone=41790000000&text=Liebe%20Sophia%0AWo%20ist%20Samuel%3F%20%0AKonf%20l%C3%A4uft.%20%0ALiebe%20Gr%C3%BCsse%0APaul%20Pfarrer"},"."]
["Susanne","Sonntagsschule",{"$f":"HYPERLINK(\"https://api.whatsapp.com/send?phone=\" & Tabelle1[[#This Row],[Handy_Elternteil_WA]] & \"&text=\" & URLEncode(Tabelle1[[#This Row],[WA_Text]]), Tabelle1[[#This Row],[Konfirmand\nVorname]] & \" fehlt,  📲 Nachricht an \" & Tabelle1[[#This Row],[Elternteil_Vorname]])","v":"Susanne fehlt,  📲 Nachricht an Stefan"},"Lieber","Stefan",41790000000,{"$f":"Tabelle1[[#This Row],[Elternteil_Anrede]] & \" \" & Tabelle1[[#This Row],[Elternteil_Vorname]] & \"\nWo ist \" &Tabelle1[[#This Row],[Konfirmand\nVorname]] & \"? \nKonf läuft. \nLiebe Grüsse\n\" & Name_Absender","v":"Lieber Stefan\nWo ist Susanne? \nKonf läuft. \nLiebe Grüsse\nPaul Pfarrer"},{"$f":"URLEncode(Tabelle1[[#This Row],[WA_Text]])","v":"Lieber%20Stefan%0AWo%20ist%20Susanne%3F%20%0AKonf%20l%C3%A4uft.%20%0ALiebe%20Gr%C3%BCsse%0APaul%20Pfarrer"},{"$f":"\"https://api.whatsapp.com/send?phone=\" & Tabelle1[[#This Row],[Handy_Elternteil_WA]] & \"&text=\" & URLEncode(Tabelle1[[#This Row],[WA_Text]])","v":"https://api.whatsapp.com/send?phone=41790000000&text=Lieber%20Stefan%0AWo%20ist%20Susanne%3F%20%0AKonf%20l%C3%A4uft.%20%0ALiebe%20Gr%C3%BCsse%0APaul%20Pfarrer"},"."]
["Ulrich","Umkehr",{"$f":"HYPERLINK(\"https://api.whatsapp.com/send?phone=\" & Tabelle1[[#This Row],[Handy_Elternteil_WA]] & \"&text=\" & URLEncode(Tabelle1[[#This Row],[WA_Text]]), Tabelle1[[#This Row],[Konfirmand\nVorname]] & \" fehlt,  📲 Nachricht an \" & Tabelle1[[#This Row],[Elternteil_Vorname]])","v":"Ulrich fehlt,  📲 Nachricht an Ursula"},"Liebe","Ursula",41790000000,{"$f":"Tabelle1[[#This Row],[Elternteil_Anrede]] & \" \" & Tabelle1[[#This Row],[Elternteil_Vorname]] & \"\nWo ist \" &Tabelle1[[#This Row],[Konfirmand\nVorname]] & \"? \nKonf läuft. \nLiebe Grüsse\n\" & Name_Absender","v":"Liebe Ursula\nWo ist Ulrich? \nKonf läuft. \nLiebe Grüsse\nPaul Pfarrer"},{"$f":"URLEncode(Tabelle1[[#This Row],[WA_Text]])","v":"Liebe%20Ursula%0AWo%20ist%20Ulrich%3F%20%0AKonf%20l%C3%A4uft.%20%0ALiebe%20Gr%C3%BCsse%0APaul%20Pfarrer"},{"$f":"\"https://api.whatsapp.com/send?phone=\" & Tabelle1[[#This Row],[Handy_Elternteil_WA]] & \"&text=\" & URLEncode(Tabelle1[[#This Row],[WA_Text]])","v":"https://api.whatsapp.com/send?phone=41790000000&text=Liebe%20Ursula%0AWo%20ist%20Ulrich%3F%20%0AKonf%20l%C3%A4uft.%20%0ALiebe%20Gr%C3%BCsse%0APaul%20Pfarrer"},"."]
["William","Wunderwasser",{"$f":"HYPERLINK(\"https://api.whatsapp.com/send?phone=\" & Tabelle1[[#This Row],[Handy_Elternteil_WA]] & \"&text=\" & URLEncode(Tabelle1[[#This Row],[WA_Text]]), Tabelle1[[#This Row],[Konfirmand\nVorname]] & \" fehlt,  📲 Nachricht an \" & Tabelle1[[#This Row],[Elternteil_Vorname]])","v":"William fehlt,  📲 Nachricht an Walter"},"Lieber","Walter",41790000000,{"$f":"Tabelle1[[#This Row],[Elternteil_Anrede]] & \" \" & Tabelle1[[#This Row],[Elternteil_Vorname]] & \"\nWo ist \" &Tabelle1[[#This Row],[Konfirmand\nVorname]] & \"? \nKonf läuft. \nLiebe Grüsse\n\" & Name_Absender","v":"Lieber Walter\nWo ist William? \nKonf läuft. \nLiebe Grüsse\nPaul Pfarrer"},{"$f":"URLEncode(Tabelle1[[#This Row],[WA_Text]])","v":"Lieber%20Walter%0AWo%20ist%20William%3F%20%0AKonf%20l%C3%A4uft.%20%0ALiebe%20Gr%C3%BCsse%0APaul%20Pfarrer"},{"$f":"\"https://api.whatsapp.com/send?phone=\" & Tabelle1[[#This Row],[Handy_Elternteil_WA]] & \"&text=\" & URLEncode(Tabelle1[[#This Row],[WA_Text]])","v":"https://api.whatsapp.com/send?phone=41790000000&text=Lieber%20Walter%0AWo%20ist%20William%3F%20%0AKonf%20l%C3%A4uft.%20%0ALiebe%20Gr%C3%BCsse%0APaul%20Pfarrer"},"."]
[null,null,null,null,null,null,null,{"$f":"URLEncode(Tabelle1[[#This Row],[WA_Text]])","v":""},"Feld darf nur 256 Zeichen lang sein!"]